[Event "Titled Tuesday Blitz August 15 Late 2023"]
[White "Morefield, Jason"]
[Black "Francisco Guecamburu, Candela Be"]
[WhiteFideId "30920825"]
[BlackFideId "160911"]
[WhiteElo "2737"]
[BlackElo "2563"]
[Result "1-0"]
[Round "11"]
[TimeControl "180+1"]
[Date "2023.08.15"]
[WhiteClock "0:00:07"]
[BlackClock "0:00:03"]
[Board "24"]

1. e4 {[%clk 0:03:00]}  c5 {[%clk 0:02:56]} 2. Nf3 {[%clk 0:03:01]}  g6 {[%clk 0:02:56]} 3. d4 {[%clk 0:03:00]}  cxd4 {[%clk 0:02:57]} 4. Nxd4 {[%clk 0:03:01]}  Bg7 {[%clk 0:02:57]} 5. c4 {[%clk 0:03:01]}  Nc6 {[%clk 0:02:57]} 6. Be3 {[%clk 0:03:01]}  Nf6 {[%clk 0:02:58]} 7. Nc3 {[%clk 0:03:01]}  d6 {[%clk 0:02:59]} 8. Be2 {[%clk 0:03:01]}  O-O {[%clk 0:02:59]} 9. O-O {[%clk 0:03:00]}  Nxd4 {[%clk 0:03:00]} 10. Bxd4 {[%clk 0:03:01]}  Bd7 {[%clk 0:03:00]} 11. f4 {[%clk 0:02:54]}  Bc6 {[%clk 0:02:56]} 12. Qd3 {[%clk 0:02:50]}  Nd7 {[%clk 0:02:54]} 13. Kh1 {[%clk 0:02:42]}  Bxd4 {[%clk 0:02:51]} 14. Qxd4 {[%clk 0:02:42]}  Qb6 {[%clk 0:02:51]} 15. Qd2 {[%clk 0:02:42]}  Nc5 {[%clk 0:02:47]} 16. Bf3 {[%clk 0:02:29]}  Qb4 {[%clk 0:02:40]} 17. b3 {[%clk 0:02:12]}  b5 {[%clk 0:02:28]} 18. cxb5 {[%clk 0:02:02]}  Bxb5 {[%clk 0:02:27]} 19. a3 {[%clk 0:01:43]}  Nxb3 {[%clk 0:01:58]} 20. axb4 {[%clk 0:01:40]}  Nxd2 {[%clk 0:01:58]} 21. Nxb5 {[%clk 0:01:40]}  Nxf1 {[%clk 0:01:58]} 22. Rxf1 {[%clk 0:01:39]}  a6 {[%clk 0:01:47]} 23. Nc3 {[%clk 0:01:34]}  Rab8 {[%clk 0:01:42]} 24. Nd5 {[%clk 0:01:31]}  Kg7 {[%clk 0:01:25]} 25. Nxe7 {[%clk 0:01:25]}  Rxb4 {[%clk 0:01:25]} 26. Nd5 {[%clk 0:01:25]}  Rb2 {[%clk 0:01:20]} 27. h4 {[%clk 0:01:20]}  Rfb8 {[%clk 0:01:20]} 28. Kh2 {[%clk 0:01:19]}  Rb1 {[%clk 0:01:20]} 29. Bd1 {[%clk 0:01:02]}  Rc1 {[%clk 0:01:15]} 30. Ne3 {[%clk 0:00:29]}  Rb2 {[%clk 0:01:03]} 31. Rf3 {[%clk 0:00:24]}  Rb4 {[%clk 0:00:31]} 32. Bc2 {[%clk 0:00:18]}  Rd4 {[%clk 0:00:26]} 33. Rf2 {[%clk 0:00:12]}  a5 {[%clk 0:00:22]} 34. f5 {[%clk 0:00:07]}  f6 {[%clk 0:00:17]} 35. fxg6 {[%clk 0:00:06]}  hxg6 {[%clk 0:00:17]} 36. Nd5 {[%clk 0:00:06]}  f5 {[%clk 0:00:15]} 37. Nf4 {[%clk 0:00:06]}  Rc4 {[%clk 0:00:08]} 38. Bd3 {[%clk 0:00:05]}  R4c3 {[%clk 0:00:04]} 39. exf5 {[%clk 0:00:05]}  gxf5 {[%clk 0:00:05]} 40. Bxf5 {[%clk 0:00:06]}  a4 {[%clk 0:00:04]} 41. Ne6+ {[%clk 0:00:05]}  Kf6 {[%clk 0:00:04]} 42. Bg4+ {[%clk 0:00:04]}  Ke5 {[%clk 0:00:03]} 43. Ng5 {[%clk 0:00:03]}  Kd4 {[%clk 0:00:02]} 44. Rf4+ {[%clk 0:00:02]}  Ke5 {[%clk 0:00:02]} 45. Rxa4 {[%clk 0:00:03]}  Rc4 {[%clk 0:00:01]} 46. Nf3+ {[%clk 0:00:03]}  Kf6 {[%clk 0:00:02]} 47. Rxc4 {[%clk 0:00:03]}  Rxc4 {[%clk 0:00:03]} 48. Kg3 {[%clk 0:00:03]}  d5 {[%clk 0:00:03]} 49. Kf2 {[%clk 0:00:04]}  Rc3 {[%clk 0:00:04]} 50. g3 {[%clk 0:00:04]}  Rb3 {[%clk 0:00:04]} 51. Bh3 {[%clk 0:00:02]}  d4 {[%clk 0:00:05]} 52. Nxd4 {[%clk 0:00:02]}  Rb2+ {[%clk 0:00:05]} 53. Ne2 {[%clk 0:00:03]}  Rc2 {[%clk 0:00:05]} 54. Bg4 {[%clk 0:00:03]}  Rb2 {[%clk 0:00:05]} 55. Bf3 {[%clk 0:00:04]}  Rb3 {[%clk 0:00:06]} 56. Kg2 {[%clk 0:00:04]}  Ra3 {[%clk 0:00:07]} 57. g4 {[%clk 0:00:05]}  Ra2 {[%clk 0:00:08]} 58. Kg3 {[%clk 0:00:05]}  Ra4 {[%clk 0:00:09]} 59. Nf4 {[%clk 0:00:06]}  Kg7 {[%clk 0:00:09]} 60. g5 {[%clk 0:00:06]}  Ra3 {[%clk 0:00:09]} 61. Kg4 {[%clk 0:00:07]}  Ra5 {[%clk 0:00:10]} 62. h5 {[%clk 0:00:07]}  Ra4 {[%clk 0:00:10]} 63. h6+ {[%clk 0:00:08]}  Kg8 {[%clk 0:00:11]} 64. Kf5 {[%clk 0:00:08]}  Ra5+ {[%clk 0:00:11]} 65. Bd5+ {[%clk 0:00:09]}  Kh7 {[%clk 0:00:11]} 66. Kf6 {[%clk 0:00:08]}  Ra6+ {[%clk 0:00:12]} 67. Ne6 {[%clk 0:00:09]}  Rd6 {[%clk 0:00:11]} 68. Be4+ {[%clk 0:00:09]}  Kh8 {[%clk 0:00:11]} 69. g6 {[%clk 0:00:09]}  Rd7 {[%clk 0:00:04]} 70. g7+ {[%clk 0:00:09]}  Rxg7 {[%clk 0:00:05]} 71. hxg7+ {[%clk 0:00:09]}  Kg8 {[%clk 0:00:03]} 72. Bd5 {[%clk 0:00:08]}  Kh7 {[%clk 0:00:04]} 73. Ng5+ {[%clk 0:00:07]}  Kh6 {[%clk 0:00:03]} 74. g8=Q {[%clk 0:00:07]} 1-0


[Site "https://www.chess.com"]

[Event "Titled Tuesday Blitz August 15 Late 2023"]
[White "Matinian, Nikita"]
[Black "Dragomirescu, Robin-Alexandru"]
[WhiteFideId "24129100"]
[BlackFideId "1213849"]
[WhiteElo "2715"]
[BlackElo "2551"]
[Result "1-0"]
[Round "11"]
[TimeControl "180+1"]
[Date "2023.08.15"]
[WhiteClock "0:01:00"]
[BlackClock "0:00:30"]
[Board "25"]

1. e4 {[%clk 0:03:00]}  g6 {[%clk 0:02:58]} 2. d4 {[%clk 0:03:00]}  Nf6 {[%clk 0:02:53]} 3. e5 {[%clk 0:02:59]}  Nh5 {[%clk 0:02:52]} 4. Be2 {[%clk 0:02:59]}  d6 {[%clk 0:02:52]} 5. Bxh5 {[%clk 0:02:59]}  gxh5 {[%clk 0:02:52]} 6. Qxh5 {[%clk 0:03:00]}  dxe5 {[%clk 0:02:53]} 7. Qxe5 {[%clk 0:03:00]}  Rg8 {[%clk 0:02:52]} 8. Ne2 {[%clk 0:02:51]}  Nc6 {[%clk 0:02:51]} 9. Qe4 {[%clk 0:02:48]}  f5 {[%clk 0:02:50]} 10. Qd3 {[%clk 0:02:34]}  Rxg2 {[%clk 0:02:49]} 11. Be3 {[%clk 0:02:27]}  e5 {[%clk 0:02:44]} 12. Nbc3 {[%clk 0:02:25]}  f4 {[%clk 0:02:34]} 13. O-O-O {[%clk 0:02:20]}  fxe3 {[%clk 0:02:31]} 14. Qe4 {[%clk 0:02:12]}  Qg5 {[%clk 0:02:30]} 15. f4 {[%clk 0:02:11]}  Qg6 {[%clk 0:02:27]} 16. Qxe3 {[%clk 0:02:08]}  Bg4 {[%clk 0:02:22]} 17. dxe5 {[%clk 0:02:05]}  Nb4 {[%clk 0:02:07]} 18. Rd2 {[%clk 0:02:05]}  Qb6 {[%clk 0:01:55]} 19. Qe4 {[%clk 0:01:55]}  Rf2 {[%clk 0:01:35]} 20. Rhd1 {[%clk 0:01:55]}  Rxe2 {[%clk 0:01:10]} 21. Rxe2 {[%clk 0:01:46]}  Bxe2 {[%clk 0:01:02]} 22. Qxe2 {[%clk 0:01:47]}  Rd8 {[%clk 0:00:55]} 23. a3 {[%clk 0:01:23]}  Rxd1+ {[%clk 0:00:54]} 24. Qxd1 {[%clk 0:01:24]}  Qe3+ {[%clk 0:00:52]} 25. Kb1 {[%clk 0:01:24]}  Nc6 {[%clk 0:00:52]} 26. Nd5 {[%clk 0:01:19]}  Qc5 {[%clk 0:00:44]} 27. Nxc7+ {[%clk 0:01:15]}  Ke7 {[%clk 0:00:34]} 28. Qh5 {[%clk 0:01:01]}  Nd4 {[%clk 0:00:30]} 29. Qe8# {[%clk 0:01:00]} 1-0


[Site "https://www.chess.com"]

[Event "Titled Tuesday Blitz August 15 Late 2023"]
[White "Grebeniuk, Semen"]
[Black "Volovich, Vasily"]
[WhiteFideId "14117509"]
[BlackFideId "34169676"]
[WhiteElo "2544"]
[BlackElo "2709"]
[Result "1-0"]
[Round "11"]
[TimeControl "180+1"]
[Date "2023.08.15"]
[WhiteClock "0:01:02"]
[BlackClock "0:00:00"]
[Board "26"]

1. d4 {[%clk 0:03:00]}  Nf6 {[%clk 0:02:57]} 2. Nf3 {[%clk 0:03:01]}  e6 {[%clk 0:02:55]} 3. Bg5 {[%clk 0:03:01]}  d5 {[%clk 0:02:54]} 4. e3 {[%clk 0:03:01]}  c5 {[%clk 0:02:52]} 5. Nbd2 {[%clk 0:03:00]}  Nc6 {[%clk 0:02:52]} 6. c3 {[%clk 0:03:00]}  h6 {[%clk 0:02:47]} 7. Bh4 {[%clk 0:02:59]}  Qb6 {[%clk 0:02:47]} 8. Bxf6 {[%clk 0:02:53]}  gxf6 {[%clk 0:02:46]} 9. Be2 {[%clk 0:02:30]}  Qxb2 {[%clk 0:02:43]} 10. O-O {[%clk 0:02:28]}  Qxc3 {[%clk 0:02:43]} 11. Rc1 {[%clk 0:02:21]}  Qa3 {[%clk 0:02:43]} 12. dxc5 {[%clk 0:02:16]}  Bxc5 {[%clk 0:02:39]} 13. e4 {[%clk 0:02:17]}  O-O {[%clk 0:02:11]} 14. exd5 {[%clk 0:02:10]}  exd5 {[%clk 0:02:12]} 15. Nb3 {[%clk 0:02:10]}  Be7 {[%clk 0:02:06]} 16. Qxd5 {[%clk 0:02:09]}  Qxa2 {[%clk 0:02:04]} 17. Bc4 {[%clk 0:01:48]}  Be6 {[%clk 0:02:01]} 18. Qh5 {[%clk 0:01:44]}  Bxc4 {[%clk 0:01:52]} 19. Rxc4 {[%clk 0:01:45]}  Qxb3 {[%clk 0:01:52]} 20. Rg4+ {[%clk 0:01:35]}  Kh7 {[%clk 0:01:51]} 21. Rh4 {[%clk 0:01:04]}  Qe3 {[%clk 0:00:00]} 22. fxe3 {[%clk 0:01:02]} 1-0


[Site "https://www.chess.com"]

[Event "Titled Tuesday Blitz August 15 Late 2023"]
[White "Grossboss19"]
[Black "Troff, Kayden"]
[BlackFideId "2047896"]
[WhiteElo "2559"]
[BlackElo "2749"]
[Result "0-1"]
[Round "11"]
[TimeControl "180+1"]
[Date "2023.08.15"]
[WhiteClock "0:00:00"]
[BlackClock "0:00:12"]
[Board "30"]

1. c4 {[%clk 0:03:00]}  Nf6 {[%clk 0:02:57]} 2. Nc3 {[%clk 0:02:58]}  g6 {[%clk 0:02:56]} 3. e4 {[%clk 0:02:53]}  e5 {[%clk 0:02:56]} 4. Nf3 {[%clk 0:02:49]}  Bg7 {[%clk 0:02:55]} 5. Nxe5 {[%clk 0:02:43]}  O-O {[%clk 0:02:44]} 6. Nf3 {[%clk 0:02:40]}  Nxe4 {[%clk 0:02:42]} 7. Nxe4 {[%clk 0:02:39]}  Re8 {[%clk 0:02:42]} 8. d3 {[%clk 0:02:22]}  f5 {[%clk 0:02:39]} 9. Be2 {[%clk 0:02:20]}  fxe4 {[%clk 0:02:38]} 10. dxe4 {[%clk 0:02:20]}  d6 {[%clk 0:02:03]} 11. O-O {[%clk 0:02:16]}  Nc6 {[%clk 0:01:59]} 12. Ng5 {[%clk 0:02:12]}  Qf6 {[%clk 0:01:51]} 13. Qd5+ {[%clk 0:02:02]}  Be6 {[%clk 0:01:50]} 14. Nxe6 {[%clk 0:02:02]}  Qxe6 {[%clk 0:01:51]} 15. f3 {[%clk 0:01:49]}  a5 {[%clk 0:01:41]} 16. Rb1 {[%clk 0:01:43]}  a4 {[%clk 0:01:38]} 17. Be3 {[%clk 0:01:18]}  Nb4 {[%clk 0:01:15]} 18. Qxe6+ {[%clk 0:01:16]}  Rxe6 {[%clk 0:01:16]} 19. a3 {[%clk 0:01:12]}  Nc2 {[%clk 0:01:16]} 20. Bf2 {[%clk 0:01:12]}  Nd4 {[%clk 0:01:15]} 21. Bd1 {[%clk 0:01:10]}  c5 {[%clk 0:01:00]} 22. Re1 {[%clk 0:01:04]}  Kh8 {[%clk 0:00:48]} 23. Re3 {[%clk 0:01:01]}  b5 {[%clk 0:00:42]} 24. cxb5 {[%clk 0:00:57]}  Nxb5 {[%clk 0:00:43]} 25. Rd3 {[%clk 0:00:54]}  Rb8 {[%clk 0:00:34]} 26. Bc2 {[%clk 0:00:32]}  Re7 {[%clk 0:00:19]} 27. Kf1 {[%clk 0:00:30]}  Ra7 {[%clk 0:00:19]} 28. h4 {[%clk 0:00:29]}  Rab7 {[%clk 0:00:19]} 29. Ke2 {[%clk 0:00:19]}  c4 {[%clk 0:00:18]} 30. Rd5 {[%clk 0:00:15]}  c3 {[%clk 0:00:13]} 31. Bxa4 {[%clk 0:00:10]}  Nxa3 {[%clk 0:00:13]} 32. bxa3 {[%clk 0:00:07]}  Rxb1 {[%clk 0:00:13]} 33. Bc2 {[%clk 0:00:07]}  R1b2 {[%clk 0:00:12]} 34. Kd3 {[%clk 0:00:07]}  Rxc2 {[%clk 0:00:11]} 35. Kxc2 {[%clk 0:00:06]}  Rb2+ {[%clk 0:00:12]} 36. Kd3 {[%clk 0:00:06]}  Rxf2 {[%clk 0:00:12]} 37. Rxd6 {[%clk 0:00:00]}  Rd2+ {[%clk 0:00:12]} 0-1


[Site "https://www.chess.com"]

[Event "Titled Tuesday Blitz August 15 Late 2023"]
[White "Soderstrom, Adrian"]
[Black "Hristodoulou, Panagiotis"]
[WhiteFideId "1745786"]
[BlackFideId "4214340"]
[WhiteElo "2610"]
[BlackElo "2517"]
[Result "1-0"]
[Round "11"]
[TimeControl "180+1"]
[Date "2023.08.15"]
[WhiteClock "0:01:35"]
[BlackClock "0:00:00"]
[Board "36"]

1. h4 {[%clk 0:03:00]}  d5 {[%clk 0:02:56]} 2. d4 {[%clk 0:03:01]}  Nf6 {[%clk 0:02:55]} 3. Nc3 {[%clk 0:03:01]}  c5 {[%clk 0:02:53]} 4. e4 {[%clk 0:03:01]}  Nxe4 {[%clk 0:02:53]} 5. Nxe4 {[%clk 0:03:01]}  dxe4 {[%clk 0:02:54]} 6. d5 {[%clk 0:03:02]}  a6 {[%clk 0:02:34]} 7. a4 {[%clk 0:03:02]}  e6 {[%clk 0:02:33]} 8. Bc4 {[%clk 0:03:00]}  exd5 {[%clk 0:02:10]} 9. Bxd5 {[%clk 0:03:01]}  Be7 {[%clk 0:02:08]} 10. Bg5 {[%clk 0:03:00]}  O-O {[%clk 0:02:03]} 11. Bxe4 {[%clk 0:02:46]}  Re8 {[%clk 0:00:58]} 12. Qxd8 {[%clk 0:02:41]}  Bxd8 {[%clk 0:00:59]} 13. O-O-O {[%clk 0:02:41]}  Bc7 {[%clk 0:00:33]} 14. f3 {[%clk 0:02:30]}  Nd7 {[%clk 0:00:32]} 15. Bxb7 {[%clk 0:02:26]}  Bxb7 {[%clk 0:00:27]} 16. Rxd7 {[%clk 0:02:26]}  Rac8 {[%clk 0:00:27]} 17. Nh3 {[%clk 0:02:19]}  Bc6 {[%clk 0:00:26]} 18. Rd2 {[%clk 0:02:17]}  Bxa4 {[%clk 0:00:24]} 19. Bf4 {[%clk 0:02:11]}  Ba5 {[%clk 0:00:23]} 20. c3 {[%clk 0:02:09]}  Bb3 {[%clk 0:00:21]} 21. Ng5 {[%clk 0:02:05]}  f5 {[%clk 0:00:20]} 22. g4 {[%clk 0:02:02]}  h6 {[%clk 0:00:20]} 23. Nh3 {[%clk 0:02:02]}  Be6 {[%clk 0:00:20]} 24. g5 {[%clk 0:01:59]}  h5 {[%clk 0:00:19]} 25. Bd6 {[%clk 0:01:57]}  c4 {[%clk 0:00:19]} 26. Nf4 {[%clk 0:01:57]}  Bc7 {[%clk 0:00:17]} 27. Re1 {[%clk 0:01:56]}  Bxd6 {[%clk 0:00:15]} 28. Nxe6 {[%clk 0:01:56]}  Rxe6 {[%clk 0:00:14]} 29. Rxe6 {[%clk 0:01:56]}  Bf4 {[%clk 0:00:15]} 30. Kc2 {[%clk 0:01:53]}  Bxd2 {[%clk 0:00:14]} 31. Kxd2 {[%clk 0:01:54]}  Rd8+ {[%clk 0:00:15]} 32. Kc2 {[%clk 0:01:54]}  Rd3 {[%clk 0:00:15]} 33. g6 {[%clk 0:01:54]}  Kf8 {[%clk 0:00:15]} 34. f4 {[%clk 0:01:52]}  Rf3 {[%clk 0:00:15]} 35. Rxa6 {[%clk 0:01:52]}  Rxf4 {[%clk 0:00:15]} 36. Ra7 {[%clk 0:01:49]}  Rxh4 {[%clk 0:00:14]} 37. Rf7+ {[%clk 0:01:50]}  Ke8 {[%clk 0:00:13]} 38. Rxf5 {[%clk 0:01:45]}  Rh2+ {[%clk 0:00:12]} 39. Kb1 {[%clk 0:01:46]}  Rg2 {[%clk 0:00:13]} 40. Rxh5 {[%clk 0:01:45]}  Rxg6 {[%clk 0:00:14]} 41. Rc5 {[%clk 0:01:45]}  Rg4 {[%clk 0:00:13]} 42. Ka2 {[%clk 0:01:46]}  Ke7 {[%clk 0:00:11]} 43. Ka3 {[%clk 0:01:46]}  Kf6 {[%clk 0:00:09]} 44. Kb4 {[%clk 0:01:46]}  g5 {[%clk 0:00:10]} 45. Rxc4 {[%clk 0:01:44]}  Rxc4+ {[%clk 0:00:09]} 46. Kxc4 {[%clk 0:01:45]}  Ke5 {[%clk 0:00:06]} 47. Kd3 {[%clk 0:01:46]}  Kf4 {[%clk 0:00:07]} 48. Ke2 {[%clk 0:01:46]}  Kg3 {[%clk 0:00:07]} 49. b4 {[%clk 0:01:34]}  g4 {[%clk 0:00:00]} 50. b5 {[%clk 0:01:35]} 1-0


[Site "https://www.chess.com"]

[Event "Titled Tuesday Blitz August 15 Late 2023"]
[White "Lysyj, Igor"]
[Black "subham777"]
[WhiteFideId "4150120"]
[WhiteElo "2840"]
[BlackElo "2539"]
[Result "1-0"]
[Round "11"]
[TimeControl "180+1"]
[Date "2023.08.15"]
[WhiteClock "0:00:30"]
[BlackClock "0:00:00"]
[Board "38"]

1. d4 {[%clk 0:03:00]}  d5 {[%clk 0:02:55]} 2. c4 {[%clk 0:02:58]}  e6 {[%clk 0:02:55]} 3. Nf3 {[%clk 0:02:58]}  Nf6 {[%clk 0:02:55]} 4. g3 {[%clk 0:02:58]}  Be7 {[%clk 0:02:55]} 5. Bg2 {[%clk 0:02:57]}  O-O {[%clk 0:02:55]} 6. O-O {[%clk 0:02:57]}  dxc4 {[%clk 0:02:55]} 7. Na3 {[%clk 0:02:57]}  Bxa3 {[%clk 0:02:50]} 8. bxa3 {[%clk 0:02:57]}  Bd7 {[%clk 0:02:46]} 9. Ne5 {[%clk 0:02:56]}  Bc6 {[%clk 0:02:41]} 10. Nxc6 {[%clk 0:02:56]}  Nxc6 {[%clk 0:02:42]} 11. Bb2 {[%clk 0:02:56]}  Qd6 {[%clk 0:02:38]} 12. e4 {[%clk 0:02:50]}  c3 {[%clk 0:02:24]} 13. Bxc3 {[%clk 0:02:47]}  Qxa3 {[%clk 0:02:23]} 14. Qc2 {[%clk 0:02:41]}  Rad8 {[%clk 0:02:11]} 15. Rfd1 {[%clk 0:02:39]}  Nb4 {[%clk 0:02:06]} 16. Qb3 {[%clk 0:02:19]}  Qxb3 {[%clk 0:01:50]} 17. axb3 {[%clk 0:02:19]}  Nc6 {[%clk 0:01:50]} 18. d5 {[%clk 0:02:18]}  exd5 {[%clk 0:01:50]} 19. exd5 {[%clk 0:02:17]}  Ne7 {[%clk 0:01:49]} 20. Bxf6 {[%clk 0:02:16]}  gxf6 {[%clk 0:01:46]} 21. Rxa7 {[%clk 0:02:16]}  Rb8 {[%clk 0:01:46]} 22. Rc1 {[%clk 0:01:49]}  c6 {[%clk 0:01:38]} 23. dxc6 {[%clk 0:01:37]}  Nxc6 {[%clk 0:01:39]} 24. Ra4 {[%clk 0:01:32]}  Ne5 {[%clk 0:01:32]} 25. Rc7 {[%clk 0:01:25]}  b5 {[%clk 0:01:24]} 26. Ra6 {[%clk 0:01:21]}  Kg7 {[%clk 0:01:16]} 27. f4 {[%clk 0:01:18]}  Ng6 {[%clk 0:01:08]} 28. Bf1 {[%clk 0:01:09]}  b4 {[%clk 0:01:01]} 29. Bc4 {[%clk 0:01:06]}  h5 {[%clk 0:00:55]} 30. Raa7 {[%clk 0:01:05]}  Nh8 {[%clk 0:00:41]} 31. Kg2 {[%clk 0:01:05]}  Rbd8 {[%clk 0:00:37]} 32. Rab7 {[%clk 0:01:04]}  Rd2+ {[%clk 0:00:37]} 33. Kh3 {[%clk 0:01:04]}  h4 {[%clk 0:00:33]} 34. gxh4 {[%clk 0:00:59]}  Ng6 {[%clk 0:00:31]} 35. Rxf7+ {[%clk 0:00:58]}  Rxf7 {[%clk 0:00:31]} 36. Rxf7+ {[%clk 0:00:59]}  Kh6 {[%clk 0:00:31]} 37. Rxf6 {[%clk 0:00:58]}  Kg7 {[%clk 0:00:31]} 38. Rf7+ {[%clk 0:00:56]}  Kh6 {[%clk 0:00:30]} 39. h5 {[%clk 0:00:53]}  Nh8 {[%clk 0:00:19]} 40. Rf8 {[%clk 0:00:52]}  Kg7 {[%clk 0:00:18]} 41. Rg8+ {[%clk 0:00:51]}  Kh7 {[%clk 0:00:19]} 42. Rb8 {[%clk 0:00:50]}  Rc2 {[%clk 0:00:17]} 43. Rxb4 {[%clk 0:00:49]}  Kh6 {[%clk 0:00:17]} 44. Rb8 {[%clk 0:00:48]}  Kg7 {[%clk 0:00:15]} 45. Kg3 {[%clk 0:00:47]}  Rc3+ {[%clk 0:00:14]} 46. Kg4 {[%clk 0:00:46]}  Rc2 {[%clk 0:00:14]} 47. h4 {[%clk 0:00:46]}  Rc3 {[%clk 0:00:08]} 48. Ra8 {[%clk 0:00:44]}  Rc1 {[%clk 0:00:08]} 49. Kf5 {[%clk 0:00:42]}  Nf7 {[%clk 0:00:07]} 50. Ra7 {[%clk 0:00:41]}  Kh6 {[%clk 0:00:03]} 51. Rxf7 {[%clk 0:00:37]}  Rg1 {[%clk 0:00:03]} 52. Rb7 {[%clk 0:00:35]}  Rg3 {[%clk 0:00:02]} 53. b4 {[%clk 0:00:31]}  Rg1 {[%clk 0:00:00]} 54. b5 {[%clk 0:00:30]} 1-0


[Site "https://www.chess.com"]

[Event "Titled Tuesday Blitz August 15 Late 2023"]
[White "Mendez Fortes, Eduardo Jesus"]
[Black "Karamsetty, Jeevan"]
[WhiteFideId "3502376"]
[BlackFideId "2025337"]
[WhiteElo "2601"]
[BlackElo "2521"]
[Result "1-0"]
[Round "11"]
[TimeControl "180+1"]
[Date "2023.08.15"]
[WhiteClock "0:00:30"]
[BlackClock "0:00:00"]
[Board "40"]

1. e4 {[%clk 0:03:00]}  d6 {[%clk 0:02:59]} 2. d4 {[%clk 0:03:00]}  Nf6 {[%clk 0:03:00]} 3. Nc3 {[%clk 0:03:00]}  e5 {[%clk 0:03:01]} 4. Nf3 {[%clk 0:03:00]}  Nbd7 {[%clk 0:03:01]} 5. Bc4 {[%clk 0:02:58]}  Be7 {[%clk 0:03:01]} 6. O-O {[%clk 0:02:58]}  O-O {[%clk 0:03:02]} 7. h3 {[%clk 0:02:58]}  a6 {[%clk 0:03:02]} 8. a4 {[%clk 0:02:59]}  b6 {[%clk 0:03:01]} 9. Re1 {[%clk 0:02:58]}  Bb7 {[%clk 0:03:02]} 10. d5 {[%clk 0:02:59]}  a5 {[%clk 0:02:52]} 11. Bb5 {[%clk 0:02:52]}  Nc5 {[%clk 0:02:51]} 12. Bg5 {[%clk 0:02:49]}  Nxd5 {[%clk 0:02:42]} 13. Nxd5 {[%clk 0:02:42]}  Bxg5 {[%clk 0:02:41]} 14. Nxg5 {[%clk 0:02:42]}  Qxg5 {[%clk 0:02:41]} 15. Nxc7 {[%clk 0:02:40]}  Rac8 {[%clk 0:01:38]} 16. Nd5 {[%clk 0:02:36]}  Bxd5 {[%clk 0:01:38]} 17. exd5 {[%clk 0:02:34]}  f5 {[%clk 0:01:35]} 18. c3 {[%clk 0:02:33]}  Ne4 {[%clk 0:01:24]} 19. Re3 {[%clk 0:02:25]}  Nf6 {[%clk 0:01:20]} 20. Rg3 {[%clk 0:02:25]}  Qh6 {[%clk 0:01:19]} 21. Re3 {[%clk 0:02:15]}  f4 {[%clk 0:01:15]} 22. Re1 {[%clk 0:02:15]}  e4 {[%clk 0:01:06]} 23. f3 {[%clk 0:02:14]}  e3 {[%clk 0:01:03]} 24. Qd3 {[%clk 0:02:13]}  Qg5 {[%clk 0:00:59]} 25. Rad1 {[%clk 0:02:09]}  Nh5 {[%clk 0:00:58]} 26. Bd7 {[%clk 0:01:53]}  Rc5 {[%clk 0:00:53]} 27. Bg4 {[%clk 0:01:52]}  Nf6 {[%clk 0:00:51]} 28. Qf5 {[%clk 0:01:48]}  Qh6 {[%clk 0:00:24]} 29. Qe6+ {[%clk 0:01:44]}  Kh8 {[%clk 0:00:24]} 30. Qxd6 {[%clk 0:01:43]}  Re8 {[%clk 0:00:18]} 31. Be6 {[%clk 0:01:40]}  Qh4 {[%clk 0:00:13]} 32. Qxb6 {[%clk 0:01:38]}  Qf2+ {[%clk 0:00:13]} 33. Kh1 {[%clk 0:01:38]}  e2 {[%clk 0:00:10]} 34. Ra1 {[%clk 0:01:35]}  Nh5 {[%clk 0:00:10]} 35. b4 {[%clk 0:01:27]}  Ng3+ {[%clk 0:00:10]} 36. Kh2 {[%clk 0:01:27]}  axb4 {[%clk 0:00:07]} 37. cxb4 {[%clk 0:01:23]}  Nf1+ {[%clk 0:00:06]} 38. Rxf1 {[%clk 0:01:21]}  Qg3+ {[%clk 0:00:04]} 39. Kg1 {[%clk 0:01:19]}  exf1=Q+ {[%clk 0:00:05]} 40. Kxf1 {[%clk 0:01:14]}  Rc2 {[%clk 0:00:06]} 41. Qg1 {[%clk 0:01:13]}  h5 {[%clk 0:00:05]} 42. Re1 {[%clk 0:01:04]}  Rb8 {[%clk 0:00:04]} 43. b5 {[%clk 0:00:54]}  Ra8 {[%clk 0:00:04]} 44. Rd1 {[%clk 0:00:33]}  Rxa4 {[%clk 0:00:03]} 45. d6 {[%clk 0:00:33]}  g5 {[%clk 0:00:01]} 46. d7 {[%clk 0:00:32]}  Ra8 {[%clk 0:00:02]} 47. d8=Q+ {[%clk 0:00:32]}  Rxd8 {[%clk 0:00:02]} 48. Rxd8+ {[%clk 0:00:32]}  Kh7 {[%clk 0:00:03]} 49. Bf5+ {[%clk 0:00:31]}  Kh6 {[%clk 0:00:02]} 50. Qb6+ {[%clk 0:00:31]}  Kg7 {[%clk 0:00:00]} 51. Rd7+ {[%clk 0:00:30]} 1-0


[Site "https://www.chess.com"]

[Event "Titled Tuesday Blitz August 15 Late 2023"]
[White "Ibadov, Dashgyn"]
[Black "NigelDwarf"]
[WhiteFideId "24107514"]
[WhiteElo "2597"]
[BlackElo "2506"]
[Result "0-1"]
[Round "11"]
[TimeControl "180+1"]
[Date "2023.08.15"]
[WhiteClock "0:00:00"]
[BlackClock "0:00:19"]
[Board "41"]

1. e4 {[%clk 0:03:00]}  c5 {[%clk 0:02:59]} 2. Nf3 {[%clk 0:03:00]}  d6 {[%clk 0:02:54]} 3. d4 {[%clk 0:03:00]}  cxd4 {[%clk 0:02:54]} 4. Nxd4 {[%clk 0:03:01]}  Nf6 {[%clk 0:02:54]} 5. Nc3 {[%clk 0:03:01]}  a6 {[%clk 0:02:54]} 6. Bg5 {[%clk 0:03:02]}  Nbd7 {[%clk 0:02:51]} 7. Qe2 {[%clk 0:03:00]}  h6 {[%clk 0:02:49]} 8. Bh4 {[%clk 0:03:00]}  g6 {[%clk 0:02:47]} 9. f4 {[%clk 0:02:59]}  e5 {[%clk 0:02:46]} 10. fxe5 {[%clk 0:02:58]}  dxe5 {[%clk 0:02:46]} 11. O-O-O {[%clk 0:02:58]}  Bg7 {[%clk 0:02:42]} 12. Nf3 {[%clk 0:02:39]}  Qc7 {[%clk 0:02:39]} 13. Qc4 {[%clk 0:02:15]}  Qxc4 {[%clk 0:02:34]} 14. Bxc4 {[%clk 0:02:16]}  O-O {[%clk 0:02:34]} 15. Rhe1 {[%clk 0:01:57]}  b5 {[%clk 0:02:30]} 16. Bb3 {[%clk 0:01:57]}  Bb7 {[%clk 0:02:30]} 17. Nd5 {[%clk 0:01:57]}  a5 {[%clk 0:02:11]} 18. Nxf6+ {[%clk 0:01:44]}  Nxf6 {[%clk 0:02:07]} 19. Bxf6 {[%clk 0:01:44]}  Bxf6 {[%clk 0:02:07]} 20. Bd5 {[%clk 0:01:45]}  Ra7 {[%clk 0:02:00]} 21. Bxb7 {[%clk 0:01:44]}  Rxb7 {[%clk 0:02:01]} 22. Rd5 {[%clk 0:01:44]}  Re8 {[%clk 0:01:50]} 23. Red1 {[%clk 0:01:32]}  a4 {[%clk 0:01:42]} 24. a3 {[%clk 0:01:30]}  b4 {[%clk 0:01:41]} 25. Ra5 {[%clk 0:01:15]}  bxa3 {[%clk 0:01:24]} 26. bxa3 {[%clk 0:01:15]}  Reb8 {[%clk 0:01:23]} 27. Rd3 {[%clk 0:00:43]}  g5 {[%clk 0:00:50]} 28. h3 {[%clk 0:00:42]}  h5 {[%clk 0:00:49]} 29. g4 {[%clk 0:00:32]}  Rb1+ {[%clk 0:00:46]} 30. Kd2 {[%clk 0:00:32]}  Rh1 {[%clk 0:00:45]} 31. Nxe5 {[%clk 0:00:22]}  Re8 {[%clk 0:00:43]} 32. Nd7 {[%clk 0:00:15]}  Bb2 {[%clk 0:00:39]} 33. Rxg5+ {[%clk 0:00:10]}  Kh7 {[%clk 0:00:37]} 34. Rxh5+ {[%clk 0:00:10]}  Kg6 {[%clk 0:00:37]} 35. Rdd5 {[%clk 0:00:09]}  f6 {[%clk 0:00:34]} 36. e5 {[%clk 0:00:08]}  fxe5 {[%clk 0:00:23]} 37. Nxe5+ {[%clk 0:00:08]}  Kf6 {[%clk 0:00:18]} 38. Rd6+ {[%clk 0:00:04]}  Ke7 {[%clk 0:00:18]} 39. Rd7+ {[%clk 0:00:00]}  Ke6 {[%clk 0:00:19]} 0-1


[Site "https://www.chess.com"]